[Event "*** Titled Tuesday Blitz"]
[Site "Chess.com"]
[Date "2020.05.12"]
[Round "5"]
[White "Batsai"]
[Black "FGHSMN"]
[Result "1-0"]
[WhiteElo "2275"]
[BlackElo "2489"]
[TimeControl "180+1"]
[EndTime "10:56:18 PDT"]
[Termination "Batsai won by resignation"]

1. e4 {[%clk 0:03:00.9]} 1... c5 {[%clk 0:02:59.4]} 2. Nf3 {[%clk 0:03:00.8]}
2... d6 {[%clk 0:02:59.1]} 3. d4 {[%clk 0:03:01.7]} 3... cxd4 {[%clk 0:02:59.7]}
4. Nxd4 {[%clk 0:03:02.6]} 4... Nf6 {[%clk 0:03:00]} 5. Nc3 {[%clk 0:03:03.5]}
5... a6 {[%clk 0:02:59.9]} 6. Bg5 {[%clk 0:03:04.1]} 6... e6 {[%clk 0:03:00.1]}
7. Qf3 {[%clk 0:03:03.7]} 7... Be7 {[%clk 0:02:58.6]} 8. O-O-O {[%clk
0:03:03.3]} 8... O-O {[%clk 0:02:55.7]} 9. e5 {[%clk 0:02:37.4]} 9... Ne8 {[%clk
0:02:29.1]} 10. Bxe7 {[%clk 0:02:34.6]} 10... Qxe7 {[%clk 0:02:30]} 11. exd6
{[%clk 0:02:28.9]} 11... Nxd6 {[%clk 0:02:29.5]} 12. Bd3 {[%clk 0:02:27.8]}
12... Nd7 {[%clk 0:02:24.9]} 13. Rhe1 {[%clk 0:02:19.1]} 13... Qg5+ {[%clk
0:02:10.8]} 14. Kb1 {[%clk 0:02:18.5]} 14... Ne5 {[%clk 0:02:09.6]} 15. Qg3
{[%clk 0:01:51.1]} 15... Qxg3 {[%clk 0:02:06.8]} 16. hxg3 {[%clk 0:01:52]} 16...
Nxd3 {[%clk 0:02:06.6]} 17. Rxd3 {[%clk 0:01:52.9]} 17... Nc4 {[%clk 0:01:40.9]}
18. b3 {[%clk 0:01:49.8]} 18... Na5 {[%clk 0:01:39.2]} 19. Re5 {[%clk
0:01:45.9]} 19... b5 {[%clk 0:01:37.3]} 20. a4 {[%clk 0:01:41.6]} 20... f6
{[%clk 0:01:28.6]} 21. Rc5 {[%clk 0:01:41.2]} 21... e5 {[%clk 0:01:24.6]} 22.
Nc6 {[%clk 0:01:38.4]} 22... Nxc6 {[%clk 0:01:22.6]} 23. Rxc6 {[%clk 0:01:39.3]}
23... bxa4 {[%clk 0:01:20.4]} 24. Nxa4 {[%clk 0:01:37.5]} 24... Bf5 {[%clk
0:01:17.2]} 25. Rdd6 {[%clk 0:01:29.8]} 25... Be4 {[%clk 0:01:01.3]} 26. Rc7
{[%clk 0:01:27.3]} 26... Rac8 {[%clk 0:00:56.4]} 27. Rdd7 {[%clk 0:01:15.2]}
27... Rxc7 {[%clk 0:00:55.8]} 28. Rxc7 {[%clk 0:01:16.1]} 28... Bxg2 {[%clk
0:00:55.8]} 29. Nc5 {[%clk 0:01:14.8]} 29... Ra8 {[%clk 0:00:47.9]} 30. Ne6
{[%clk 0:01:13.2]} 30... g6 {[%clk 0:00:46.1]} 31. Rg7+ {[%clk 0:01:12.3]} 31...
Kh8 {[%clk 0:00:45.9]} 32. Rf7 {[%clk 0:01:11]} 32... f5 {[%clk 0:00:35.3]} 33.
Ng5 {[%clk 0:01:06.8]} 33... h5 {[%clk 0:00:32.9]} 34. c4 {[%clk 0:00:59]} 34...
e4 {[%clk 0:00:30.6]} 35. Kc2 {[%clk 0:00:51.7]} 35... Re8 {[%clk 0:00:28.4]}
36. Kd2 {[%clk 0:00:51]} 36... Rd8+ {[%clk 0:00:27.1]} 37. Ke3 {[%clk
0:00:50.8]} 37... Rd3+ {[%clk 0:00:25.6]} 38. Kf4 {[%clk 0:00:51]} 38... Rxb3
{[%clk 0:00:22.3]} 39. Ke5 {[%clk 0:00:45]} 39... Rb6 {[%clk 0:00:20.6]} 40. Ne6
{[%clk 0:00:41.7]} 40... Bf1 {[%clk 0:00:20]} 41. c5 {[%clk 0:00:41.2]} 41...
Rc6 {[%clk 0:00:17.5]} 42. Rf8+ {[%clk 0:00:29.1]} 42... Kh7 {[%clk 0:00:16.8]}
43. Kd5 {[%clk 0:00:29.5]} 43... Bb5 {[%clk 0:00:16.2]} 44. Nd4 {[%clk
0:00:24.8]} 44... Rc7 {[%clk 0:00:13.8]} 45. Nxb5 {[%clk 0:00:24.7]} 45... axb5
{[%clk 0:00:14.7]} 46. c6 {[%clk 0:00:24.7]} 46... b4 {[%clk 0:00:14.7]} 47. Kd6
{[%clk 0:00:24.7]} 47... Ra7 {[%clk 0:00:13.2]} 48. c7 {[%clk 0:00:24.4]} 48...
Rxc7 {[%clk 0:00:13.4]} 49. Kxc7 {[%clk 0:00:25.3]} 49... b3 {[%clk 0:00:13.3]}
50. Rb8 {[%clk 0:00:25.2]} 50... g5 {[%clk 0:00:13.6]} 51. Kd6 {[%clk
0:00:24.9]} 51... Kg6 {[%clk 0:00:12.9]} 52. Ke5 {[%clk 0:00:24.3]} 52... h4
{[%clk 0:00:12.9]} 53. gxh4 {[%clk 0:00:24.4]} 53... gxh4 {[%clk 0:00:12.9]} 54.
Kf4 {[%clk 0:00:23.2]} 54... h3 {[%clk 0:00:08.4]} 55. Rxb3 {[%clk 0:00:23]} 1-0

[Event "*** Titled Tuesday Blitz"]
[Site "Chess.com"]
[Date "2020.05.12"]
[Round "5"]
[White "KuzubovYuriy"]
[Black "mbachez"]
[Result "1-0"]
[WhiteElo "2679"]
[BlackElo "2486"]
[TimeControl "180+1"]
[EndTime "10:56:19 PDT"]
[Termination "KuzubovYuriy won by resignation"]

1. d4 {[%clk 0:03:00.9]} 1... Nf6 {[%clk 0:02:59.3]} 2. Nf3 {[%clk 0:03:01.5]}
2... d5 {[%clk 0:02:58.4]} 3. c4 {[%clk 0:03:01.4]} 3... c6 {[%clk 0:02:58.6]}
4. e3 {[%clk 0:03:01]} 4... Bf5 {[%clk 0:02:58.1]} 5. Nc3 {[%clk 0:03:00.9]}
5... e6 {[%clk 0:02:58.3]} 6. Nh4 {[%clk 0:03:01.1]} 6... Be4 {[%clk 0:02:58.5]}
7. Qb3 {[%clk 0:02:58.4]} 7... Qb6 {[%clk 0:02:57.7]} 8. Qxb6 {[%clk 0:02:48.7]}
8... axb6 {[%clk 0:02:56.3]} 9. cxd5 {[%clk 0:02:46.7]} 9... exd5 {[%clk
0:02:46.8]} 10. f3 {[%clk 0:02:46.7]} 10... Bc2 {[%clk 0:02:27.9]} 11. Kd2
{[%clk 0:02:42.1]} 11... Bg6 {[%clk 0:02:24.7]} 12. Nxg6 {[%clk 0:02:40.3]}
12... hxg6 {[%clk 0:02:24]} 13. Kc2 {[%clk 0:02:35.4]} 13... b5 {[%clk
0:02:24.1]} 14. Bd2 {[%clk 0:02:27.7]} 14... Bd6 {[%clk 0:02:23.7]} 15. h3
{[%clk 0:02:27]} 15... Nbd7 {[%clk 0:02:14.2]} 16. Bd3 {[%clk 0:02:25.4]} 16...
O-O {[%clk 0:02:11.8]} 17. a4 {[%clk 0:02:20.1]} 17... b4 {[%clk 0:02:01.2]} 18.
Ne2 {[%clk 0:02:00.2]} 18... c5 {[%clk 0:02:01]} 19. dxc5 {[%clk 0:01:52.2]}
19... Bxc5 {[%clk 0:01:58.4]} 20. Bb5 {[%clk 0:01:31.7]} 20... Rac8 {[%clk
0:01:49.8]} 21. Kb3 {[%clk 0:01:23.5]} 21... Rfe8 {[%clk 0:01:41.6]} 22. Nd4
{[%clk 0:01:21.7]} 22... Bd6 {[%clk 0:01:31.2]} 23. Rac1 {[%clk 0:01:18.8]}
23... Kf8 {[%clk 0:00:59]} 24. Rxc8 {[%clk 0:01:13.3]} 24... Rxc8 {[%clk
0:00:56.2]} 25. Bxb4 {[%clk 0:01:13.3]} 25... Bxb4 {[%clk 0:00:33.4]} 26. Kxb4
{[%clk 0:01:14.2]} 26... Ke7 {[%clk 0:00:33.9]} 27. Rd1 {[%clk 0:01:08.8]} 27...
Ne5 {[%clk 0:00:33.7]} 28. b3 {[%clk 0:01:04.3]} 28... Nc6+ {[%clk 0:00:26.6]}
29. Bxc6 {[%clk 0:01:03.6]} 29... bxc6 {[%clk 0:00:26.7]} 30. Kc3 {[%clk
0:01:03.4]} 30... Kd6 {[%clk 0:00:25.4]} 31. b4 {[%clk 0:01:03.2]} 31... c5
{[%clk 0:00:23.1]} 32. Nb5+ {[%clk 0:01:02.2]} 32... Ke6 {[%clk 0:00:22.8]} 33.
bxc5 {[%clk 0:01:01.6]} 33... Rxc5+ {[%clk 0:00:22.4]} 34. Kb3 {[%clk
0:00:58.5]} 34... Nd7 {[%clk 0:00:21.6]} 35. Ra1 {[%clk 0:00:54.1]} 35... Rc4
{[%clk 0:00:21.2]} 36. Nd4+ {[%clk 0:00:50.5]} 36... Kd6 {[%clk 0:00:21.3]} 37.
a5 {[%clk 0:00:46.2]} 37... Nc5+ {[%clk 0:00:21.1]} 38. Kb2 {[%clk 0:00:32.8]}
38... Nd3+ {[%clk 0:00:19.4]} 39. Ka3 {[%clk 0:00:30.7]} 39... Rc3+ {[%clk
0:00:19.2]} 40. Ka4 {[%clk 0:00:29.4]} 40... Kc5 {[%clk 0:00:19.6]} 41. Nb3+
{[%clk 0:00:19.8]} 41... Kc4 {[%clk 0:00:19.6]} 42. Nd2+ {[%clk 0:00:19.7]}
42... Kc5 {[%clk 0:00:19.9]} 43. Rb1 {[%clk 0:00:19]} 43... Rc2 {[%clk
0:00:19.5]} 44. Nb3+ {[%clk 0:00:18.6]} 44... Kc4 {[%clk 0:00:19.8]} 45. Ra1
{[%clk 0:00:15.5]} 45... Nb2+ {[%clk 0:00:18.4]} 46. Ka3 {[%clk 0:00:15.2]}
46... Rc3 {[%clk 0:00:18.8]} 47. Rc1 {[%clk 0:00:14.5]} 47... Rxc1 {[%clk
0:00:09.8]} 48. Nxc1 {[%clk 0:00:15.4]} 48... Kc3 {[%clk 0:00:09.5]} 49. Na2+
{[%clk 0:00:14.2]} 49... Kc2 {[%clk 0:00:08.7]} 50. Nb4+ {[%clk 0:00:14.5]}
50... Kc3 {[%clk 0:00:09.1]} 51. Nxd5+ {[%clk 0:00:14.5]} 51... Kc2 {[%clk
0:00:10]} 52. a6 {[%clk 0:00:14.4]} 52... Nc4+ {[%clk 0:00:10]} 53. Kb4 {[%clk
0:00:14.4]} 53... Nd6 {[%clk 0:00:10.2]} 54. a7 {[%clk 0:00:14.4]} 1-0

[Event "*** Titled Tuesday Blitz"]
[Site "Chess.com"]
[Date "2020.05.12"]
[Round "5"]
[White "FairChess_on_YouTube"]
[Black "Anuar_Is"]
[Result "0-1"]
[WhiteElo "3063"]
[BlackElo "2795"]
[TimeControl "180+1"]
[EndTime "10:56:20 PDT"]
[Termination "Anuar_Is won by resignation"]

1. e4 {[%clk 0:03:00.9]} 1... c5 {[%clk 0:02:59.4]} 2. Nc3 {[%clk 0:02:59.3]}
2... Nc6 {[%clk 0:02:58.8]} 3. Nge2 {[%clk 0:02:57.8]} 3... Nf6 {[%clk
0:02:58.2]} 4. d4 {[%clk 0:02:57.5]} 4... cxd4 {[%clk 0:02:59.1]} 5. Nxd4 {[%clk
0:02:57.9]} 5... e5 {[%clk 0:02:59.6]} 6. Nde2 {[%clk 0:02:58]} 6... Bc5 {[%clk
0:02:55.5]} 7. Ng3 {[%clk 0:02:53.4]} 7... O-O {[%clk 0:02:53.5]} 8. Be2 {[%clk
0:02:50.6]} 8... a6 {[%clk 0:02:51.3]} 9. O-O {[%clk 0:02:44.5]} 9... d6 {[%clk
0:02:50.9]} 10. Bg5 {[%clk 0:02:34.8]} 10... h6 {[%clk 0:02:46]} 11. Bxf6 {[%clk
0:02:34.8]} 11... Qxf6 {[%clk 0:02:46.9]} 12. Nd5 {[%clk 0:02:34.3]} 12... Qg5
{[%clk 0:02:40.2]} 13. c3 {[%clk 0:02:27.2]} 13... Rb8 {[%clk 0:02:29.7]} 14. a4
{[%clk 0:02:22.2]} 14... Ne7 {[%clk 0:02:17]} 15. Nxe7+ {[%clk 0:02:08.9]} 15...
Qxe7 {[%clk 0:02:16.3]} 16. Nf5 {[%clk 0:02:00.2]} 16... Qf6 {[%clk 0:01:46.3]}
17. Qd3 {[%clk 0:01:50.3]} 17... Rd8 {[%clk 0:01:42.4]} 18. Ne3 {[%clk
0:01:21.4]} 18... Be6 {[%clk 0:01:23.7]} 19. Nd5 {[%clk 0:01:20.5]} 19... Qg5
{[%clk 0:01:23.4]} 20. Rfd1 {[%clk 0:01:09.9]} 20... Kh8 {[%clk 0:01:16.1]} 21.
Qg3 {[%clk 0:01:09.3]} 21... Qxg3 {[%clk 0:01:06.9]} 22. hxg3 {[%clk 0:01:10.2]}
22... Kg8 {[%clk 0:01:05.7]} 23. a5 {[%clk 0:00:56.4]} 23... Kf8 {[%clk
0:01:04.6]} 24. Rd2 {[%clk 0:00:54.4]} 24... Rbc8 {[%clk 0:01:02.9]} 25. Rad1
{[%clk 0:00:52.9]} 25... Ba7 {[%clk 0:01:02.8]} 26. Nb4 {[%clk 0:00:46.2]} 26...
Ke7 {[%clk 0:00:59.5]} 27. Nd5+ {[%clk 0:00:44.6]} 27... Kf8 {[%clk 0:00:56.2]}
28. Nb4 {[%clk 0:00:35.7]} 28... Ke7 {[%clk 0:00:49.8]} 29. Kf1 {[%clk
0:00:26.6]} 29... Rc5 {[%clk 0:00:46.6]} 30. Ra1 {[%clk 0:00:27.1]} 30... Bb8
{[%clk 0:00:36.2]} 31. Nd3 {[%clk 0:00:22.6]} 31... Rc4 {[%clk 0:00:33.5]} 32.
f3 {[%clk 0:00:18.5]} 32... Ba7 {[%clk 0:00:30.7]} 33. Nb4 {[%clk 0:00:16.8]}
33... Rc5 {[%clk 0:00:30.9]} 34. Nd3 {[%clk 0:00:16.7]} 34... Rc7 {[%clk
0:00:29.7]} 35. Nb4 {[%clk 0:00:16.7]} 35... Rc5 {[%clk 0:00:26.8]} 36. Nd3
{[%clk 0:00:16.6]} 36... Rcc8 {[%clk 0:00:27]} 37. Nb4 {[%clk 0:00:16.6]} 37...
h5 {[%clk 0:00:24.5]} 38. Nd5+ {[%clk 0:00:16.1]} 38... Kf8 {[%clk 0:00:24.8]}
39. Rad1 {[%clk 0:00:11.9]} 39... Rc5 {[%clk 0:00:23.2]} 40. b4 {[%clk 0:00:12]}
40... Rcc8 {[%clk 0:00:22.7]} 41. c4 {[%clk 0:00:12.5]} 41... Bd4 {[%clk
0:00:22.1]} 42. Rxd4 {[%clk 0:00:08.7]} 42... exd4 {[%clk 0:00:23]} 43. Rxd4
{[%clk 0:00:09.1]} 43... Bxd5 {[%clk 0:00:22]} 44. Rxd5 {[%clk 0:00:10]} 44...
g6 {[%clk 0:00:21.4]} 45. f4 {[%clk 0:00:10.2]} 45... Ke7 {[%clk 0:00:21.5]} 46.
Kf2 {[%clk 0:00:10.1]} 46... Rc7 {[%clk 0:00:20.7]} 47. Ke3 {[%clk 0:00:10]}
47... Rh8 {[%clk 0:00:20.1]} 48. e5 {[%clk 0:00:04.9]} 48... dxe5 {[%clk
0:00:20.4]} 49. Rxe5+ {[%clk 0:00:03.5]} 49... Kf6 {[%clk 0:00:20.6]} 50. c5
{[%clk 0:00:03.5]} 50... h4 {[%clk 0:00:20.5]} 51. gxh4 {[%clk 0:00:03.3]} 51...
Rxh4 {[%clk 0:00:21.4]} 52. Bf3 {[%clk 0:00:03.7]} 52... Rh1 {[%clk 0:00:20.8]}
53. Re8 {[%clk 0:00:02.8]} 53... Re1+ {[%clk 0:00:20.4]} 54. Kf2 {[%clk
0:00:02.2]} 54... Rxe8 {[%clk 0:00:19.7]} 0-1

[Event "*** Titled Tuesday Blitz"]
[Site "Chess.com"]
[Date "2020.05.12"]
[Round "5"]
[White "LizaSolovyova"]
[Black "Kezin_Roman"]
[Result "0-1"]
[WhiteElo "2592"]
[BlackElo "2793"]
[TimeControl "180+1"]
[EndTime "10:56:20 PDT"]
[Termination "Kezin_Roman won on time"]

1. d4 {[%clk 0:03:00]} 1... d5 {[%clk 0:03:00.1]} 2. Nc3 {[%clk 0:02:55.1]} 2...
Nf6 {[%clk 0:02:59.8]} 3. Bg5 {[%clk 0:02:54.9]} 3... Nbd7 {[%clk 0:02:48.3]} 4.
e4 {[%clk 0:02:52.5]} 4... dxe4 {[%clk 0:02:44.9]} 5. f3 {[%clk 0:02:52.1]} 5...
h6 {[%clk 0:02:06.5]} 6. Bh4 {[%clk 0:02:43.7]} 6... exf3 {[%clk 0:01:47.8]} 7.
Nxf3 {[%clk 0:02:42.1]} 7... g6 {[%clk 0:01:48.2]} 8. Bc4 {[%clk 0:02:39.9]}
8... Bg7 {[%clk 0:01:48.3]} 9. Qe2 {[%clk 0:02:34.4]} 9... O-O {[%clk
0:01:46.2]} 10. O-O-O {[%clk 0:02:34.3]} 10... Nb6 {[%clk 0:01:41.3]} 11. Bb3
{[%clk 0:02:34.3]} 11... Nbd5 {[%clk 0:01:34.4]} 12. Ne4 {[%clk 0:02:21.1]}
12... Bf5 {[%clk 0:01:32]} 13. Nxf6+ {[%clk 0:02:16.8]} 13... Nxf6 {[%clk
0:01:32.9]} 14. Rhe1 {[%clk 0:02:15.4]} 14... e6 {[%clk 0:01:17.5]} 15. h3
{[%clk 0:02:12.5]} 15... g5 {[%clk 0:01:14.4]} 16. Bg3 {[%clk 0:02:04.7]} 16...
a5 {[%clk 0:01:01.8]} 17. a3 {[%clk 0:02:02.2]} 17... a4 {[%clk 0:00:58.7]} 18.
Ba2 {[%clk 0:02:02.3]} 18... Ra6 {[%clk 0:00:47]} 19. Ne5 {[%clk 0:01:57.8]}
19... Rd6 {[%clk 0:00:39.7]} 20. Bf2 {[%clk 0:01:41.2]} 20... Nd5 {[%clk
0:00:27.5]} 21. g4 {[%clk 0:01:31.7]} 21... Bh7 {[%clk 0:00:27.3]} 22. Bg3
{[%clk 0:01:24]} 22... Qe7 {[%clk 0:00:26.6]} 23. Nd3 {[%clk 0:01:18.4]} 23...
Rdd8 {[%clk 0:00:25]} 24. Nc5 {[%clk 0:01:13]} 24... b6 {[%clk 0:00:22.1]} 25.
Ne4 {[%clk 0:01:07.8]} 25... Nf4 {[%clk 0:00:12.8]} 26. Bxf4 {[%clk 0:01:07.1]}
26... gxf4 {[%clk 0:00:13.7]} 27. c3 {[%clk 0:01:04]} 27... c5 {[%clk
0:00:13.3]} 28. dxc5 {[%clk 0:00:56.2]} 28... bxc5 {[%clk 0:00:14.2]} 29. Qc4
{[%clk 0:00:51.7]} 29... Rxd1+ {[%clk 0:00:10.5]} 30. Rxd1 {[%clk 0:00:52.6]}
30... Rd8 {[%clk 0:00:10.5]} 31. Qxc5 {[%clk 0:00:23.9]} 31... Rxd1+ {[%clk
0:00:08.3]} 32. Kxd1 {[%clk 0:00:24.8]} 32... Qb7 {[%clk 0:00:06.7]} 33. Nf2
{[%clk 0:00:22.7]} 33... Qxb2 {[%clk 0:00:05.6]} 34. Qc8+ {[%clk 0:00:17.3]}
34... Bf8 {[%clk 0:00:05.5]} 35. Bxe6 {[%clk 0:00:14.1]} 35... Qxf2 {[%clk
0:00:04.4]} 36. Bc4 {[%clk 0:00:06.1]} 36... Qf3+ {[%clk 0:00:04.2]} 37. Kd2
{[%clk 0:00:05.3]} 37... Qe3+ {[%clk 0:00:04.7]} 38. Kd1 {[%clk 0:00:05.5]}
38... Qe4 {[%clk 0:00:05]} 39. Qc7 {[%clk 0:00:03.2]} 39... Qc2+ {[%clk
0:00:04.7]} 40. Ke1 {[%clk 0:00:03.3]} 40... Qxc3+ {[%clk 0:00:05.3]} 41. Kf1
{[%clk 0:00:03.4]} 41... Bd3+ {[%clk 0:00:04.8]} 42. Kf2 {[%clk 0:00:03.9]}
42... Qxc4 {[%clk 0:00:05.1]} 0-1

[Event "*** Titled Tuesday Blitz"]
[Site "Chess.com"]
[Date "2020.05.12"]
[Round "5"]
[White "Arjun2002"]
[Black "IMTominho"]
[Result "0-1"]
[WhiteElo "2663"]
[BlackElo "2843"]
[TimeControl "180+1"]
[EndTime "10:56:22 PDT"]
[Termination "IMTominho won on time"]

1. e4 {[%clk 0:03:00.9]} 1... e5 {[%clk 0:02:55.5]} 2. Nf3 {[%clk 0:03:00.3]}
2... Nf6 {[%clk 0:02:53.2]} 3. Nxe5 {[%clk 0:02:55.8]} 3... d6 {[%clk 0:02:53]}
4. Nf3 {[%clk 0:02:55.8]} 4... Nxe4 {[%clk 0:02:52.9]} 5. c4 {[%clk 0:02:54.5]}
5... Be7 {[%clk 0:02:50.5]} 6. Nc3 {[%clk 0:02:49.8]} 6... Nf6 {[%clk
0:02:39.6]} 7. d4 {[%clk 0:02:44.4]} 7... O-O {[%clk 0:02:40.5]} 8. Bd3 {[%clk
0:02:43.2]} 8... Bg4 {[%clk 0:02:38.5]} 9. h3 {[%clk 0:02:41.8]} 9... Bh5 {[%clk
0:02:37.9]} 10. O-O {[%clk 0:02:40.4]} 10... Nc6 {[%clk 0:02:37.3]} 11. Be3
{[%clk 0:02:36.2]} 11... d5 {[%clk 0:02:35.9]} 12. c5 {[%clk 0:02:32.7]} 12...
b6 {[%clk 0:02:10.4]} 13. cxb6 {[%clk 0:02:27.4]} 13... axb6 {[%clk 0:02:10.2]}
14. a3 {[%clk 0:02:20.8]} 14... Na5 {[%clk 0:02:05.4]} 15. g4 {[%clk 0:01:58.9]}
15... Bg6 {[%clk 0:02:03.6]} 16. Ne5 {[%clk 0:01:54.7]} 16... Bxd3 {[%clk
0:02:00.3]} 17. Qxd3 {[%clk 0:01:53.7]} 17... c5 {[%clk 0:01:45.2]} 18. Rad1
{[%clk 0:01:31.5]} 18... c4 {[%clk 0:01:21.5]} 19. Qe2 {[%clk 0:01:22.7]} 19...
Ne8 {[%clk 0:01:06.5]} 20. f4 {[%clk 0:01:07.5]} 20... Rb8 {[%clk 0:00:55.6]}
21. Qg2 {[%clk 0:01:03]} 21... Nc7 {[%clk 0:00:54.6]} 22. f5 {[%clk 0:01:03.1]}
22... b5 {[%clk 0:00:48.2]} 23. Na2 {[%clk 0:00:55.7]} 23... f6 {[%clk
0:00:46.6]} 24. Nf3 {[%clk 0:00:52.7]} 24... Nc6 {[%clk 0:00:46.5]} 25. Bd2
{[%clk 0:00:44.6]} 25... b4 {[%clk 0:00:44.8]} 26. Nxb4 {[%clk 0:00:42.5]} 26...
Nxb4 {[%clk 0:00:44.7]} 27. axb4 {[%clk 0:00:42.4]} 27... Bxb4 {[%clk
0:00:45.6]} 28. Bc3 {[%clk 0:00:42.5]} 28... Bxc3 {[%clk 0:00:43.9]} 29. bxc3
{[%clk 0:00:43.4]} 29... Rb3 {[%clk 0:00:44.4]} 30. Rc1 {[%clk 0:00:29.5]} 30...
Nb5 {[%clk 0:00:43.3]} 31. Qd2 {[%clk 0:00:26.7]} 31... Qd6 {[%clk 0:00:22.5]}
32. Kg2 {[%clk 0:00:22.3]} 32... Qa3 {[%clk 0:00:19.5]} 33. Ra1 {[%clk
0:00:15.3]} 33... Qb2 {[%clk 0:00:19.5]} 34. Qxb2 {[%clk 0:00:04.9]} 34... Rxb2+
{[%clk 0:00:20.4]} 35. Rf2 {[%clk 0:00:03.3]} 35... Rb3 {[%clk 0:00:17.6]} 36.
Ra5 {[%clk 0:00:01.7]} 36... Nxc3 {[%clk 0:00:17.6]} 37. Nd2 {[%clk 0:00:01.9]}
37... Rb2 {[%clk 0:00:15.7]} 38. Rc5 {[%clk 0:00:02.1]} 38... Re8 {[%clk
0:00:15]} 39. Rc7 {[%clk 0:00:02]} 39... Re2 {[%clk 0:00:13.2]} 40. Rxe2 {[%clk
0:00:01.8]} 40... Nxe2 {[%clk 0:00:14.1]} 41. Nf3 {[%clk 0:00:01.9]} 41... Nxd4+
{[%clk 0:00:13.4]} 42. Kg3 {[%clk 0:00:02.3]} 42... Nxf3 {[%clk 0:00:13.7]} 43.
Kxf3 {[%clk 0:00:02.4]} 43... Rd2 {[%clk 0:00:13.2]} 44. Kf4 {[%clk 0:00:02.8]}
44... Rd4+ {[%clk 0:00:12.2]} 45. Ke3 {[%clk 0:00:03]} 45... Rd3+ {[%clk
0:00:13.1]} 46. Kf4 {[%clk 0:00:02.9]} 46... c3 {[%clk 0:00:12.7]} 47. Rc8+
{[%clk 0:00:03.1]} 47... Kf7 {[%clk 0:00:12.5]} 48. Rc7+ {[%clk 0:00:03.6]}
48... Kf8 {[%clk 0:00:12.9]} 49. h4 {[%clk 0:00:03.6]} 49... Rd4+ {[%clk
0:00:10.8]} 50. Ke3 {[%clk 0:00:03.8]} 50... Rc4 {[%clk 0:00:11]} 0-1

[Event "*** Titled Tuesday Blitz"]
[Site "Chess.com"]
[Date "2020.05.12"]
[Round "5"]
[White "TregubovP"]
[Black "KaterynaLagno"]
[Result "1/2-1/2"]
[WhiteElo "2539"]
[BlackElo "2690"]
[TimeControl "180+1"]
[EndTime "10:56:22 PDT"]
[Termination "Game drawn by repetition"]

1. e4 {[%clk 0:03:00.9]} 1... e5 {[%clk 0:02:59.7]} 2. Nf3 {[%clk 0:02:59.2]}
2... Nc6 {[%clk 0:02:59.9]} 3. Bb5 {[%clk 0:02:59.4]} 3... g6 {[%clk 0:02:59.2]}
4. d4 {[%clk 0:02:57.1]} 4... exd4 {[%clk 0:02:58.6]} 5. Bg5 {[%clk 0:02:57.1]}
5... Be7 {[%clk 0:02:57.8]} 6. Bxe7 {[%clk 0:02:55.1]} 6... Qxe7 {[%clk
0:02:58.7]} 7. O-O {[%clk 0:02:54]} 7... d6 {[%clk 0:02:44.2]} 8. Qxd4 {[%clk
0:02:32]} 8... f6 {[%clk 0:02:14.6]} 9. Nc3 {[%clk 0:02:29.8]} 9... Bd7 {[%clk
0:02:14.1]} 10. Qe3 {[%clk 0:02:22.3]} 10... Be6 {[%clk 0:01:21.6]} 11. Nd4
{[%clk 0:02:16.2]} 11... Qd7 {[%clk 0:01:13.6]} 12. Nd5 {[%clk 0:02:10.8]} 12...
Bf7 {[%clk 0:01:12.2]} 13. Qc3 {[%clk 0:02:06.1]} 13... a6 {[%clk 0:01:05.3]}
14. Ba4 {[%clk 0:01:49.8]} 14... b5 {[%clk 0:00:39]} 15. Nxb5 {[%clk 0:01:48.4]}
15... axb5 {[%clk 0:00:17.6]} 16. Bxb5 {[%clk 0:01:47.8]} 16... Bxd5 {[%clk
0:00:15.2]} 17. exd5 {[%clk 0:01:47.2]} 17... Nge7 {[%clk 0:00:15.4]} 18. Qxf6
{[%clk 0:01:19.6]} 18... Rf8 {[%clk 0:00:14.5]} 19. dxc6 {[%clk 0:01:00.3]}
19... Rxf6 {[%clk 0:00:11.4]} 20. cxd7+ {[%clk 0:01:00.7]} 20... Kd8 {[%clk
0:00:12.1]} 21. Rfe1 {[%clk 0:00:57.9]} 21... c6 {[%clk 0:00:11.9]} 22. Bxc6
{[%clk 0:00:58.2]} 22... Rb8 {[%clk 0:00:09.5]} 23. Ba4 {[%clk 0:00:53.3]} 23...
Rxb2 {[%clk 0:00:08.8]} 24. h3 {[%clk 0:00:49.6]} 24... Rf4 {[%clk 0:00:08.3]}
25. Rxe7 {[%clk 0:00:47.8]} 25... Rxa4 {[%clk 0:00:06.4]} 26. Rxh7 {[%clk
0:00:47.3]} 26... Rbxa2 {[%clk 0:00:04.9]} 27. Re1 {[%clk 0:00:45.1]} 27... Ra1
{[%clk 0:00:04.9]} 28. Rxa1 {[%clk 0:00:45.7]} 28... Rxa1+ {[%clk 0:00:05.8]}
29. Kh2 {[%clk 0:00:46.1]} 29... Rc1 {[%clk 0:00:06.6]} 30. Rg7 {[%clk
0:00:43.2]} 30... Rxc2 {[%clk 0:00:07.1]} 31. Kg3 {[%clk 0:00:41.9]} 31... Re2
{[%clk 0:00:05.5]} 32. h4 {[%clk 0:00:40.7]} 32... Re6 {[%clk 0:00:05.2]} 33.
Kg4 {[%clk 0:00:38.2]} 33... d5 {[%clk 0:00:05.6]} 34. f4 {[%clk 0:00:30.5]}
34... d4 {[%clk 0:00:05.8]} 35. f5 {[%clk 0:00:30.7]} 35... Re4+ {[%clk
0:00:06.1]} 36. Kf3 {[%clk 0:00:28.4]} 36... gxf5 {[%clk 0:00:05.9]} 37. h5
{[%clk 0:00:26.2]} 37... Rh4 {[%clk 0:00:05.9]} 38. Rg5 {[%clk 0:00:22.8]} 38...
Kxd7 {[%clk 0:00:05.1]} 39. Rxf5 {[%clk 0:00:22.8]} 39... Ke6 {[%clk 0:00:05.4]}
40. Ra5 {[%clk 0:00:16.5]} 40... d3 {[%clk 0:00:04.4]} 41. Ke3 {[%clk
0:00:15.8]} 41... Rg4 {[%clk 0:00:03.9]} 42. Ra2 {[%clk 0:00:12.8]} 42... Rg5
{[%clk 0:00:03]} 43. h6 {[%clk 0:00:11.8]} 43... Kf7 {[%clk 0:00:03.3]} 44. Kxd3
{[%clk 0:00:11]} 44... Rh5 {[%clk 0:00:03.1]} 45. Ra6 {[%clk 0:00:09.7]} 45...
Rg5 {[%clk 0:00:03]} 46. Ke4 {[%clk 0:00:09.6]} 46... Rxg2 {[%clk 0:00:02.4]}
47. Kf5 {[%clk 0:00:10]} 47... Kg8 {[%clk 0:00:02.2]} 48. Ra7 {[%clk 0:00:09.4]}
48... Kh8 {[%clk 0:00:02.6]} 49. Kf6 {[%clk 0:00:07.9]} 49... Rf2+ {[%clk
0:00:03.5]} 50. Kg6 {[%clk 0:00:07.7]} 50... Rg2+ {[%clk 0:00:03.5]} 51. Kf6
{[%clk 0:00:07.6]} 51... Rf2+ {[%clk 0:00:03.4]} 52. Kg6 {[%clk 0:00:07.6]}
52... Rg2+ {[%clk 0:00:04.3]} 53. Kf6 {[%clk 0:00:07.2]} 1/2-1/2